bitfinex/quotes_ETHUSD_20250328
["timestamp","ask_amount","ask_price","bid_price","bid_amount"]
[1743169495685,5.26509,1899.3,1899.1,0.8146]
[1743169495900,2.90912652,1899.3,1898.7,0.8297]
[1743169496056,5.26611,1899.0,1898.7,0.8297]
[1743169496257,5.26648,1898.8,1898.6,5.377]
[1743169496568,5.26653,1898.8,1898.6,5.377]
[1743169496765,5.26653,1898.8,1898.5,0.7512]
[1743169497549,5.26653,1898.8,1898.5,6.01851]
[1743169497751,12.10583,1899.0,1898.6,5.319578]
[1743169498049,6.01,1899.0,1898.8,5.26647]
[1743169498251,6.01,1899.0,1898.7,5.2667]
[1743169498252,6.01,1899.0,1898.7,10.64371]
[1743169498667,11.27606,1899.0,1898.7,5.377]
[1743169498870,11.27593,1899.0,1898.7,5.377]
[1743169499077,5.26641,1898.9,1898.7,5.377]
[1743169499282,5.26641,1898.9,1898.5,11.39649]
[1743169499581,12.403533,1899.0,1898.6,5.31966496]
[1743169499782,5.26685,1898.7,1898.5,0.7512]
[1743169500153,5.26648,1898.8,1898.5,6.01848]
[1743169500355,5.26624,1898.9,1898.5,11.33819802]
[1743169500548,5.26659,1898.8,1898.5,0.7512]
[1743169501067,10.53325,1898.8,1898.5,0.7512]
[1743169501262,5.26703,1898.7,1898.3,11.44281]
[1743169501461,6.319835,1898.8,1898.4,5.26738]
[1743169501462,1.053325,1898.8,1898.4,5.26738]
[1743169501781,5.26668,1898.8,1898.4,5.26755]
[1743169501981,5.26724,1898.6,1898.3,0.7971]
[1743169502169,5.26679,1898.7,1898.3,0.7971]
[1743169502170,5.26679,1898.7,1898.4,5.26758]
[1743169502555,5.26712,1898.6,1898.3,6.1751]
[1743169502755,10.53434,1898.6,1898.3,0.7971]
[1743169502956,5.26713,1898.6,1898.3,0.7971]
[1743169503493,10.53438,1898.6,1898.3,0.7971]
[1743169503684,5.26734,1898.5,1898.3,0.7971]
[1743169503984,0.8004,1898.8,1898.3,0.7971]
[1743169504195,5.26716,1898.6,1898.3,0.7971]
[1743169504697,5.26737,1898.5,1898.3,0.7971]
[1743169505094,5.26716,1898.6,1898.3,0.7971]
[1743169505489,5.26734,1898.5,1898.3,0.7971]
[1743169505815,0.526734,1898.5,1898.1,0.8703]
[1743169505980,14.18612652,1898.7,1898.1,0.8703]
[1743169506293,5.26773,1898.4,1898.1,0.8703]
[1743169507371,5.26771,1898.4,1898.1,0.8703]
[1743169507566,3.0,1898.6,1898.1,0.8703]
[1743169507788,5.26768,1898.4,1898.1,0.8703]
[1743169507988,10.53553,1898.4,1898.1,0.8703]
[1743169508189,10.53546,1898.4,1898.1,0.8703]
[1743169508389,0.3,1898.5,1898.1,0.8703]
[1743169508591,5.26814,1898.2,1898.1,0.05]
[1743169508896,0.81772665,1898.2,1898.1,0.05]
[1743169509097,5.26745,1898.5,1898.2,0.8246]
[1743169509290,5.26762,1898.4,1898.2,0.8246]
[1743169509486,5.26814,1898.3,1898.1,0.05]
[1743169509687,2.90912652,1898.6,1898.1,0.05]
[1743169509688,5.2676,1898.4,1898.1,0.05]
[1743169509887,5.79436,1898.4,1898.1,0.05]
[1743169510090,5.26814,1898.2,1898.1,0.05]
[1743169510290,6.04864,1898.2,1898.1,0.05]
[1743169511078,17.96776652,1898.2,1898.1,0.05]
[1743169511379,17.96776652,1898.2,1898.1,1e-05]
[1743169511590,20.84133017,1898.2,1898.1,1e-05]
[1743169511789,20.29133017,1898.2,1898.1,1e-05]
[1743169511988,17.38220365,1898.2,1898.1,1e-05]
[1743169512924,17.77604902,1898.2,1898.1,1e-05]
[1743169513277,18.32604902,1898.2,1898.1,1e-05]
[1743169514096,18.30394902,1898.2,1898.1,1e-05]
[1743169514783,17.75394902,1898.2,1898.1,1e-05]
[1743169514997,11.27814,1898.2,1898.1,1e-05]
[1743169515687,14.18726652,1898.2,1898.1,1e-05]
[1743169516007,14.27814,1898.2,1898.1,1e-05]
[1743169517079,17.18726652,1898.2,1898.1,1e-05]
[1743169517994,17.95176652,1898.2,1898.1,1e-05]
[1743169518297,20.27373017,1898.2,1898.1,1e-05]
[1743169519885,20.82373017,1898.2,1898.1,1e-05]
[1743169520087,21.22003574,1898.2,1898.1,1e-05]
[1743169520903,5.27064,1897.3,1897.2,0.7952]
[1743169521719,5.27092,1897.2,1897.1,27.851]
[1743169522617,5.27148,1897.0,1896.9,0.7735]
[1743169523215,10.54282,1897.1,1896.9,0.7735]
[1743169524003,5.27096,1897.2,1896.9,0.7735]
[1743169524203,10.54208,1897.2,1896.9,0.7735]
[1743169524389,5.27019,1897.5,1897.1,5.271]
[1743169524585,5.26985,1897.6,1897.2,5.27082]
[1743169524887,6.00999,1897.7,1897.6,5.26981]
[1743169525086,6.00999,1898.1,1897.7,0.7714]
[1743169525391,8.26887,1898.0,1897.7,0.7714]
[1743169525818,3.0,1898.0,1897.7,6.04084]
[1743169526021,5.26909,1897.9,1897.7,0.7714]
[1743169526987,8.26888,1898.0,1897.7,0.7714]
[1743169527585,5.26913,1897.9,1897.7,0.7714]
[1743169528520,8.26874,1898.0,1897.7,0.7714]
[1743169528716,5.26925,1897.8,1897.5,0.7535]
[1743169529127,8.26883,1898.0,1897.6,5.26974]
[1743169529321,3.0,1898.0,1897.7,5.26953]
[1743169529500,6.00999,1898.1,1897.9,6.09254]
[1743169530220,11.27733,1898.5,1898.0,5.26859]
[1743169530437,6.00999,1898.5,1898.1,6.05977]
[1743169530622,11.27731,1898.5,1898.2,5.26799]
[1743169530918,6.00999,1898.5,1898.2,5.26797]
[1743169531126,6.00999,1898.5,1898.3,5.2677]
[1743169531523,12.03791,1899.1,1898.5,5.26729]
[1743169531738,6.77219,1899.1,1898.4,6.08548]
[1743169531935,5.26658,1898.8,1898.4,6.08548]
[1743169532600,5.26629,1898.9,1898.5,5.26725]
[1743169532800,5.26649,1898.8,1898.5,5.26725]
[1743169533034,5.26649,1898.8,1898.4,6.08546]
[1743169533332,5.26649,1898.8,1898.5,5.26728]
[1743169533716,11.2758,1899.1,1898.6,5.31969785]
[1743169533915,5.26581,1899.1,1898.7,5.26656]
[1743169534231,5.26602,1899.0,1898.6,16.69769]
[1743169534608,5.2661,1899.0,1898.6,16.69759]
[1743169534802,3.0,1899.2,1898.7,5.26664]
[1743169535002,5.56589,1899.1,1898.6,6.1638]
[1743169535198,0.3,1899.1,1898.6,6.1638]
[1743169535403,5.26645,1898.9,1898.6,6.1638]
[1743169535633,5.26648,1898.8,1898.6,6.1638]
[1743169535812,5.26645,1898.9,1898.6,6.1638]
[1743169536211,5.26595,1899.0,1898.6,11.43062]
[1743169536419,5.56581,1899.1,1898.6,6.1638]
[1743169536736,5.26603,1899.0,1898.6,11.43064]
[1743169537101,5.26603,1899.0,1898.6,11.43077]
[1743169537331,5.26644,1898.9,1898.6,0.7838]
[1743169537627,5.26694,1898.7,1898.4,0.7885]
[1743169538206,12.08144,1898.9,1898.5,5.26726]
[1743169538606,5.26659,1898.8,1898.4,6.05585]
[1743169538803,12.08144,1898.9,1898.5,5.26719]
[1743169539003,7.8003893,1898.9,1898.6,5.26694]
[1743169539223,6.00999,1898.9,1898.8,6.05328]
[1743169539435,5.26436,1899.6,1899.2,5.26535]
[1743169539633,5.26436,1899.6,1899.3,0.7868]
[1743169539834,5.26469,1899.5,1899.3,0.7868]
[1743169540140,6.317595,1899.5,1899.3,0.7868]
[1743169540431,6.317595,1899.5,1898.9,5.2662]
[1743169540432,9.75231652,1899.4,1898.7,6.1484]
[1743169540622,5.26648,1898.8,1898.7,5.379]
[1743169540823,5.2662,1898.9,1898.5,6.03659]
[1743169541211,5.26685,1898.7,1898.5,0.7694]
[1743169541411,5.26685,1898.7,1898.3,10.64673]
[1743169541412,5.26703,1898.6,1898.3,0.7755]
[1743169541615,5.26734,1898.5,1898.3,0.7755]
[1743169542127,5.26705,1898.6,1898.3,0.7755]
[1743169542331,10.53429,1898.6,1898.3,0.7755]
[1743169542538,5.26747,1898.5,1898.3,0.7755]
[1743169542740,5.26703,1898.6,1898.3,0.7755]
[1743169542955,0.5793715,1898.6,1898.3,0.7755]
[1743169543142,5.8465715,1898.6,1898.3,0.7755]
[1743169543338,0.5793715,1898.6,1898.3,0.7755]
[1743169543548,11.27685,1898.7,1898.3,6.04317]
[1743169543744,5.26746,1898.5,1898.3,0.7755]
[1743169543947,5.26777,1898.4,1898.1,6.04019]
[1743169544120,5.26798,1898.3,1898.1,0.7718]
[1743169544833,5.26737,1898.5,1898.2,5.26814]
[1743169545035,5.26724,1898.6,1898.2,5.26814]
[1743169545349,11.27687,1898.7,1898.2,5.872104]
[1743169545522,5.26714,1898.6,1898.2,11.140094]
[1743169545725,5.26714,1898.6,1898.2,5.871984]
[1743169545941,5.26747,1898.5,1898.2,0.603994]
[1743169546148,11.27701,1898.7,1898.2,5.872034]
[1743169546653,5.26806,1898.3,1898.1,0.7718]
[1743169547042,5.26797,1898.3,1898.1,0.7718]
[1743169547239,5.26765,1898.4,1898.1,6.04022]
[1743169547448,3.0,1898.6,1898.1,0.7718]
[1743169547763,8.26713,1898.6,1898.2,5.268]
[1743169548056,8.26713,1898.6,1898.2,10.53601]
[1743169548266,8.26713,1898.6,1898.2,5.268]
[1743169548435,5.26735,1898.5,1898.2,5.268]
[1743169548634,10.53487,1898.5,1898.1,6.04021]
[1743169548835,8.26706,1898.6,1898.1,0.7718]
[1743169549029,8.26706,1898.6,1898.2,10.64594]
[1743169549660,5.26772,1898.4,1898.2,5.378]
[1743169549848,5.26731,1898.5,1898.2,10.6461]
[1743169550026,5.26731,1898.5,1898.2,5.378]
[1743169550656,5.2676,1898.4,1898.2,5.378]
[1743169550847,5.26731,1898.5,1898.2,5.378]
[1743169551248,13.53433,1898.6,1898.2,10.64595]
[1743169551450,8.26705,1898.6,1898.3,5.26784]
[1743169551655,12.404461,1898.7,1898.2,5.378]
[1743169551859,5.26688,1898.7,1898.3,0.7866]
[1743169552071,3.0,1898.8,1898.3,0.7866]
[1743169552272,3.0,1898.8,1898.1,0.7866]
[1743169552273,5.26787,1898.3,1898.1,0.7866]
[1743169552449,5.26787,1898.3,1897.9,6.05557]
[1743169552643,5.26787,1898.3,1897.9,1.929957]
[1743169552842,20.22046652,1898.6,1897.9,0.7866]
[1743169552843,2.90912652,1898.4,1897.9,0.7866]
[1743169553159,5.26885,1898.0,1897.7,0.7555]
[1743169553358,5.26907,1897.9,1897.7,0.7555]
[1743169553525,5.26907,1897.9,1897.6,33.23]
[1743169554025,5.26925,1897.8,1897.6,33.23]
[1743169554230,5.26957,1897.7,1897.5,0.7771]
[1743169554829,5.27037,1897.4,1897.2,7.16096805]
[1743169555359,11.2799,1897.6,1897.2,6.06992]
[1743169555735,6.00999,1897.6,1897.3,5.32324593]
[1743169555936,11.27993,1897.6,1897.2,6.06976]
[1743169556364,11.27993,1897.6,1897.3,5.27057]
[1743169556858,6.00999,1897.6,1897.2,0.799]
[1743169557061,6.00999,1897.6,1897.3,5.2704]
[1743169557062,11.27982,1897.6,1897.3,5.2704]
[1743169557258,6.00999,1897.6,1897.3,5.2704]
[1743169557427,6.00999,1897.6,1897.2,12.35750265]
[1743169557629,11.27991,1897.6,1897.2,12.35750265]
[1743169557865,11.27991,1897.6,1897.2,17.62825265]
[1743169558080,6.00999,1897.6,1897.5,5.27009]
[1743169558247,8.26907,1897.9,1897.5,6.08209]
[1743169558581,5.26933,1897.8,1897.5,0.812]
[1743169558752,5.26964,1897.7,1897.5,0.812]
[1743169558947,8.26912,1897.9,1897.5,6.08186]
[1743169559274,3.0,1897.9,1897.5,0.812]
[1743169559474,5.26944,1897.8,1897.5,0.812]
[1743169559648,5.26965,1897.7,1897.5,0.812]
[1743169559834,5.26965,1897.7,1897.3,10.64939]
[1743169559835,5.27007,1897.6,1897.3,6.1838]
[1743169560333,6.00999,1898.1,1897.7,0.8319]
[1743169560529,11.27855,1898.1,1897.7,6.15386306]
[1743169560758,11.27855,1898.1,1897.7,9.78810589]
[1743169560759,6.00999,1898.1,1897.7,9.78810589]
[1743169560963,6.00999,1898.1,1897.8,5.26903]
[1743169561146,6.00999,1898.1,1897.9,5.26884]
[1743169561351,10.53602,1898.3,1897.9,5.26884]
[1743169561581,5.26831,1898.2,1897.8,10.53837]
[1743169561731,5.26843,1898.1,1897.7,11.4803]
[1743169561936,8.795141,1898.2,1897.7,0.8319]
[1743169561937,5.2689,1898.0,1897.7,0.8319]
[1743169562184,3.0,1898.3,1897.9,5.26889]
[1743169562390,5.26772,1898.4,1898.0,0.7795]
[1743169562536,5.26772,1898.4,1897.6,10.64857]
[1743169562537,5.26825,1898.2,1897.6,0.8215]
[1743169562841,5.26953,1897.7,1897.4,0.8215]
[1743169563033,5.26995,1897.6,1897.3,5.379]
[1743169563662,5.26963,1897.7,1897.3,15.91992]
[1743169564032,5.26963,1897.7,1897.3,5.379]
[1743169564232,5.26994,1897.6,1897.3,10.64958]
[1743169564433,5.2693,1897.8,1897.3,7.053185]
[1743169564631,5.26953,1897.7,1897.4,5.27025]
[1743169564833,10.53927,1897.7,1897.3,10.6496]
[1743169565036,5.27005,1897.6,1897.3,5.379]
[1743169565230,5.27024,1897.5,1897.3,5.379]
[1743169565840,5.27022,1897.5,1897.3,5.379]
[1743169566063,5.26997,1897.6,1897.2,0.8215]
[1743169566264,5.27082,1897.3,1897.0,0.8233]
[1743169566468,5.2712,1897.1,1896.8,6.2023]
[1743169566655,5.27097,1897.2,1896.8,11.4742]
[1743169567039,10.54271,1897.1,1896.8,6.2023]
[1743169567240,5.2713,1897.1,1896.8,6.2023]
[1743169567671,10.54269,1897.1,1896.8,6.2023]
[1743169567860,11.596959,1897.1,1896.8,6.2023]
[1743169568668,6.325529,1897.1,1896.8,6.2023]
[1743169568868,6.00999,1897.3,1896.8,6.2023]
[1743169568869,11.28065,1897.3,1896.8,6.2023]
[1743169569069,5.26985,1897.6,1897.2,5.27092]
[1743169569271,5.26985,1897.6,1897.2,5.27076]
[1743169569272,10.53988,1897.6,1897.2,5.27076]
[1743169569458,5.27011,1897.5,1897.2,5.27076]
[1743169569663,10.54043,1897.5,1897.0,6.10451]
[1743169569837,2.90912652,1897.8,1897.2,5.27071]
[1743169570042,5.26987,1897.6,1897.3,0.7675]
[1743169570274,5.26969,1897.7,1897.3,0.7675]
[1743169570275,5.26969,1897.7,1897.4,5.27025]
[1743169570460,8.26926,1897.8,1897.4,5.27025]
[1743169570663,5.26901,1897.9,1897.5,5.32277817]
[1743169570865,5.26874,1898.0,1897.6,5.2697]
[1743169571083,5.26844,1898.1,1897.7,6.1015205]
[1743169571372,5.26922,1897.9,1897.7,0.7794]
[1743169571577,10.53923,1897.7,1897.3,11.41463]
[1743169571773,5.27021,1897.5,1897.3,6.144]
[1743169572166,5.27021,1897.5,1897.3,0.764]
[1743169572361,5.26985,1897.6,1897.3,0.764]
[1743169572561,6.61470365,1897.6,1897.3,0.764]
[1743169573175,11.88469365,1897.6,1897.3,0.764]
[1743169573376,5.27018,1897.5,1897.3,0.764]
[1743169573878,2.90912652,1897.7,1897.3,0.764]
[1743169574055,5.27035,1897.5,1897.1,6.10369]
[1743169574255,10.541,1897.4,1897.1,0.8326]
[1743169574464,5.27048,1897.4,1897.1,0.8326]
[1743169574667,5.27017,1897.5,1897.2,5.27091]
[1743169575046,10.53928,1897.7,1897.3,5.2705]
[1743169575242,5.26957,1897.7,1897.4,5.27036]
[1743169575490,5.26957,1897.7,1897.4,6.10296]
[1743169575974,11.27925,1897.8,1897.4,6.10277]
[1743169576164,13.311217,1897.8,1897.4,0.8326]
[1743169576360,2.031967,1897.8,1897.5,5.26997]
[1743169576567,12.08458,1898.2,1897.8,5.26925]
[1743169576748,6.00999,1898.2,1897.9,5.26876]
[1743169577075,6.00999,1898.2,1897.8,10.64908]
[1743169577076,11.27816,1898.2,1897.8,10.64908]
[1743169577260,5.26788,1898.3,1897.9,5.26878]
[1743169577461,5.26762,1898.4,1898.1,0.8133]
[1743169577692,5.26743,1898.5,1898.1,0.8133]
[1743169577857,5.26772,1898.4,1898.1,0.8133]
[1743169578062,5.2683,1898.2,1897.8,11.46239]
[1743169578665,5.26847,1898.1,1897.8,11.46239]
[1743169578861,5.26791,1898.3,1897.9,5.26898]
[1743169579060,6.08558365,1898.3,1897.8,6.1933]
[1743169579299,5.26867,1898.1,1897.8,6.1933]
[1743169579502,0.7819,1898.2,1897.8,6.1933]
[1743169579705,11.31858,1898.2,1897.8,6.1933]
[1743169579882,5.26817,1898.2,1897.8,11.46254]
[1743169580207,5.26799,1898.3,1898.0,5.26862]
[1743169580381,5.26799,1898.3,1897.9,6.2128229]
[1743169580584,5.26799,1898.3,1897.9,11.4816629]
[1743169580807,5.90912652,1898.5,1897.9,0.9439329]
[1743169580978,5.26876,1898.0,1897.8,5.38]
[1743169581184,8.17757652,1898.1,1897.8,5.38]
[1743169581185,10.53706,1898.1,1897.8,5.38]
[1743169581680,5.26816,1898.2,1897.8,10.64914]
[1743169581881,5.26787,1898.3,1897.9,5.26888]
[1743169582086,5.26761,1898.4,1898.0,6.08615]
[1743169582493,5.26799,1898.3,1898.0,0.8177]
[1743169582682,5.26858,1898.1,1897.8,6.1977]
[1743169582887,5.26885,1898.0,1897.8,0.8177]
[1743169583084,5.26885,1898.0,1897.6,5.26968]
[1743169583085,5.26908,1897.9,1897.6,6.1967]
[1743169583475,2.90912652,1898.0,1897.6,6.1967]
[1743169583677,5.55969265,1898.0,1897.6,6.1967]
[1743169583901,5.26927,1897.8,1897.6,6.1967]
[1743169584223,5.26953,1897.7,1897.4,0.7836]
[1743169584613,5.26953,1897.7,1897.4,6.05396]
[1743169584932,10.53873,1897.8,1897.4,6.05373]
[1743169585077,5.26889,1898.0,1897.7,0.8104]
[1743169585517,10.53709,1898.1,1897.7,11.45883]
[1743169585713,5.26882,1898.0,1897.7,6.1894]
[1743169585877,10.5377,1898.0,1897.7,6.1894]
[1743169586083,5.26889,1898.0,1897.7,6.1894]
[1743169586583,5.26889,1898.0,1897.7,11.45892]
[1743169586927,8.26844,1898.1,1897.7,11.45873]
[1743169587089,5.26912,1897.9,1897.7,6.1894]
[1743169587422,5.26955,1897.7,1897.5,0.7774]
[1743169587580,5.26939,1897.8,1897.5,0.7774]
[1743169587786,10.53881,1897.8,1897.5,0.7774]
[1743169587986,12.68746952,1898.1,1897.5,0.7774]
[1743169587987,5.26902,1897.9,1897.5,0.7774]
[1743169588189,7.41902952,1898.1,1897.5,1.39304]
[1743169588429,5.26912,1897.9,1897.5,1.39304]
[1743169588592,5.26912,1897.9,1897.5,11.933]
[1743169588787,5.26942,1897.8,1897.5,1.39304]
[1743169588987,5.26898,1897.9,1897.5,11.93298]
[1743169589188,5.26874,1898.0,1897.6,11.732728]
[1743169589536,10.53706,1898.1,1897.7,5.26939]
[1743169589688,6.83059,1898.2,1897.6,1.193298]
[1743169590023,11.27816,1898.2,1897.8,0.8173]
[1743169590226,6.00999,1898.2,1897.8,6.08634]
[1743169590447,6.00999,1898.4,1898.3,5.26787]
[1743169590717,5.2665,1898.8,1898.5,5.26729]
[1743169591422,5.26676,1898.7,1898.4,6.03309]
[1743169591784,3.0,1898.8,1898.5,5.26711]
[1743169591985,8.26649,1898.8,1898.5,5.26711]
[1743169592485,11.2762,1898.9,1898.5,5.870381]
[1743169592685,6.00999,1898.9,1898.5,5.870381]
[1743169592902,11.27642,1898.9,1898.5,11.137531]
[1743169593105,11.27642,1898.9,1898.6,5.26701]
[1743169593324,5.26656,1898.8,1898.5,5.870381]
[1743169593491,5.26677,1898.7,1898.5,0.603271]
[1743169593686,5.26677,1898.7,1898.4,0.7656]
[1743169593906,8.91911652,1898.9,1898.4,0.7656]
[1743169593907,11.27642,1898.9,1898.4,0.7656]
[1743169594097,3.0,1899.1,1898.8,0.7543]
[1743169594293,8.26581,1899.1,1898.8,0.7543]
[1743169594492,5.26602,1899.0,1898.8,0.7543]
[1743169594693,5.2662,1898.9,1898.8,0.7543]
[1743169594912,10.53261,1898.9,1898.7,5.378]
[1743169595090,5.26648,1898.8,1898.7,5.378]
[1743169595294,5.2662,1898.9,1898.6,5.378]
[1743169595508,10.53261,1898.9,1898.6,5.378]
[1743169595685,5.2662,1898.9,1898.5,6.02136]
[1743169595889,5.2662,1898.9,1898.6,5.378]
[1743169596120,11.17491652,1899.1,1898.6,10.645]
[1743169596417,8.26579,1899.1,1898.8,0.7641]
[1743169596619,8.17532652,1898.9,1898.6,6.1421]
[1743169596819,8.17532652,1898.9,1898.4,0.785]
[1743169596820,5.26687,1898.7,1898.4,0.785]
[1743169597119,5.26712,1898.6,1898.3,5.378]
[1743169598047,5.26816,1898.2,1898.0,28.6921]
[1743169598222,5.26842,1898.1,1898.0,27.864]
[1743169598708,5.2687,1898.0,1897.8,6.2051]
[1743169598894,5.26933,1897.8,1897.6,5.377]
[1743169599090,8.17810652,1897.9,1897.3,28.6753]
[1743169599418,5.27,1897.6,1897.3,33.94593]
[1743169599786,11.27919,1897.9,1897.4,5.32287115]
[1743169600106,11.27919,1897.9,1897.5,5.27003]
[1743169600423,6.00999,1897.9,1897.6,5.26969]
[1743169600716,6.00999,1897.9,1897.7,6.04629]
[1743169600920,6.00999,1897.9,1897.7,2.49878824]
[1743169601096,6.00999,1897.9,1897.7,0.7768]
[1743169601717,6.00999,1897.9,1897.7,6.04624]
[1743169602023,11.27911,1897.9,1897.7,0.7768]
[1743169602397,6.00999,1897.9,1897.7,6.04631]
[1743169602615,6.00999,1897.9,1897.8,5.26925]
[1743169602991,6.00999,1897.9,1897.7,6.04633]
[1743169603403,6.00999,1897.9,1897.7,0.7768]
[1743169603597,11.27913,1897.9,1897.7,0.7768]
[1743169603803,6.00999,1897.9,1897.7,0.7768]
[1743169604005,8.17757652,1898.1,1897.7,6.04623]
[1743169604433,5.26881,1898.0,1897.7,0.7768]
[1743169604599,8.17757652,1898.1,1897.7,6.04617]
[1743169605202,8.17757652,1898.1,1897.7,11.31558]
[1743169605403,5.26884,1898.0,1897.7,0.7768]
[1743169605599,5.26911,1897.9,1897.5,0.8055]
[1743169605924,5.26925,1897.8,1897.5,11.45358]
[1743169606304,3.0,1898.0,1897.8,5.26914]
[1743169606504,3.0,1898.1,1897.9,5.26894]
[1743169606701,3.0,1898.1,1897.9,6.07444]
[1743169606905,3.0,1898.1,1897.9,0.8055]
[1743169607402,3.0,1898.1,1897.9,6.07445]
[1743169607602,3.0,1898.1,1897.9,6.07443]
[1743169607925,6.00999,1898.2,1898.0,5.26867]
[1743169608098,8.26789,1898.3,1897.9,7.208782]
[1743169608294,8.26789,1898.3,1898.0,5.26868]
[1743169608515,5.26789,1898.3,1898.0,5.26868]
[1743169608716,5.26799,1898.3,1897.9,12.586812]
[1743169608920,5.26799,1898.3,1897.1,5.27113]
[1743169608921,5.2687,1898.0,1897.7,0.8185]
[1743169609225,5.2687,1898.0,1897.3,33.1256]
[1743169609226,5.26964,1897.7,1897.4,10.64836]
[1743169609900,2.90912652,1898.0,1897.4,10.64812]
[1743169610131,5.26957,1897.7,1897.4,5.378]
[1743169610431,10.53873,1897.8,1897.4,10.64825]
[1743169610625,5.2696,1897.7,1897.4,5.378]
[1743169610807,5.26981,1897.6,1897.3,11.46515]
[1743169611004,8.26898,1897.9,1897.3,6.1947]
[1743169611203,6.04947,1897.7,1897.3,0.8167]
[1743169611412,5.26932,1897.8,1897.5,5.27008]
[1743169611613,3.7532,1897.9,1897.3,6.08725]
[1743169611926,5.26984,1897.6,1897.3,6.08725]
[1743169612426,5.26976,1897.7,1897.3,11.35774]
[1743169612626,3.0,1897.9,1897.3,0.8167]
[1743169612828,5.26937,1897.8,1897.4,10.5405]
[1743169613198,8.26901,1897.9,1897.5,5.27005]
[1743169613399,5.26929,1897.8,1897.5,5.27005]
[1743169613811,8.26901,1897.9,1897.5,10.53996]
[1743169614101,8.26901,1897.9,1897.4,5.27036]
[1743169614301,8.26901,1897.9,1897.6,5.2698]
[1743169614526,13.53816,1897.9,1897.5,5.32270524]
[1743169614702,5.26926,1897.8,1897.5,5.32270524]
[1743169614903,5.26963,1897.7,1897.4,0.608706]
[1743169615128,5.26963,1897.7,1897.4,5.27033]
[1743169615344,5.26989,1897.6,1897.3,0.8167]
[1743169615508,5.26956,1897.7,1897.3,11.51789111]
[1743169615837,5.26956,1897.7,1897.3,11.46519]
[1743169616009,5.26991,1897.6,1897.3,6.1947]
[1743169616203,5.26965,1897.7,1897.3,11.46518]
[1743169616405,3.0,1897.9,1897.4,5.27036]
[1743169616603,3.0,1898.0,1897.7,6.05856]
[1743169616827,3.0,1898.0,1897.7,0.7892]
[1743169616828,8.26877,1898.0,1897.7,0.7892]
[1743169617714,5.26911,1897.9,1897.7,0.7892]
[1743169617911,5.26911,1897.9,1897.5,6.02947]
[1743169618222,10.53829,1897.9,1897.5,6.02941]
[1743169618398,5.26911,1897.9,1897.6,5.26974]
[1743169618830,5.26911,1897.9,1897.5,11.29939]
[1743169619033,10.53834,1897.9,1897.5,6.02941]
[1743169619246,5.26996,1897.6,1897.2,28.6348]
[1743169619400,5.26996,1897.6,1897.3,5.378]
[1743169619604,5.27018,1897.5,1897.3,5.378]
[1743169620032,5.26996,1897.6,1897.3,5.378]
[1743169620330,5.26957,1897.7,1897.3,15.91887]
[1743169620637,5.26957,1897.7,1897.3,10.64842]
[1743169620845,5.26929,1897.8,1897.3,9.306322]
[1743169621002,5.26929,1897.8,1897.4,5.27018]
[1743169621209,10.53872,1897.8,1897.4,5.27018]
[1743169621514,5.27027,1897.5,1897.3,5.378]
[1743169621904,5.27109,1897.2,1897.0,0.7611]
[1743169622106,5.27068,1897.3,1897.0,6.1391]
[1743169622304,5.27103,1897.2,1897.0,6.1391]
[1743169622532,5.27103,1897.2,1897.0,5.378]
[1743169623051,5.27066,1897.3,1897.0,5.378]
[1743169623237,5.27095,1897.2,1897.0,5.378]
[1743169623531,5.2712,1897.1,1897.0,5.378]
[1743169623736,10.54323,1897.0,1896.6,39.31255]
[1743169623906,10.54319,1897.0,1896.6,42.626105]
[1743169624233,5.27192,1896.9,1896.6,4.112555]
[1743169624449,5.27192,1896.9,1896.6,0.799]
[1743169624744,5.27214,1896.8,1896.6,0.799]
[1743169625553,5.27177,1896.9,1896.6,0.799]
[1743169625730,5.27206,1896.8,1896.6,0.799]
[1743169626036,10.54372,1896.9,1896.6,0.799]
[1743169626219,5.27207,1896.8,1896.6,0.799]
[1743169626741,5.27177,1896.9,1896.6,0.799]
[1743169627245,5.27213,1896.8,1896.6,0.799]
[1743169627432,5.27177,1896.9,1896.6,0.799]
[1743169627630,10.54373,1896.9,1896.6,0.799]
[1743169627834,5.27206,1896.8,1896.6,0.799]
[1743169628538,5.27188,1896.9,1896.6,0.799]
[1743169628839,11.28118,1897.2,1896.8,5.2719]
[1743169629250,5.27119,1897.2,1896.8,5.2719]
[1743169629712,5.27119,1897.2,1896.8,10.54384]
[1743169629907,5.27046,1897.4,1896.9,5.43171397]
[1743169630114,5.2689,1898.0,1897.3,5.27064]
[1743169630115,5.26929,1897.8,1897.3,5.27064]
[1743169630417,5.26929,1897.8,1897.4,5.27021]
[1743169630617,5.26965,1897.7,1897.3,5.379]
[1743169630924,5.27078,1897.3,1896.9,16.72092]
[1743169631117,5.27078,1897.3,1897.0,5.27144]
[1743169631341,5.27037,1897.4,1897.0,5.27144]
[1743169631342,5.27043,1897.4,1897.0,5.27133]
[1743169631644,5.2707,1897.3,1897.0,5.27133]
[1743169631866,16.55039,1897.5,1897.1,5.27105]
[1743169632014,16.55039,1897.5,1897.2,5.2707]
[1743169632015,6.00999,1897.5,1897.2,5.2707]
[1743169633063,11.28035,1897.5,1897.1,5.27116]
[1743169633339,5.27049,1897.4,1897.0,10.54273]
[1743169633538,5.27049,1897.4,1897.1,5.27116]